{"text_format":"1","workbook":"xlsx","n_sheets":4,"sheets":["A","B","C","E"],"not_rendered":{"charts":0,"images":1,"macros":1,"external_links":1,"defined_names":14,"comments":2,"pivot_tables":0},"unopened":[],"bounds":{"document_bytes":16777216,"sheet_cells":100000,"rows_first":2000,"rows_last":500,"rows_between":2000,"halvings":0,"cell_chars":16384,"cell_head_chars":4096},"cells_cut":0,"cells_raw":0,"read":"whole","date_system":"1900"}

{"sheet":"A","index":0,"n_rows":225,"n_cols":19,"rows_kept":225,"cut":false,"hidden":false,"merged":[[40,2,40,3],[41,2,41,3],[42,2,42,3],[43,2,43,3],[44,2,44,3],[45,2,45,3],[46,2,46,3],[47,2,47,3],[40,10,40,11],[41,10,41,11],[42,10,42,11],[43,10,43,11],[44,10,44,11],[28,2,28,3],[29,2,29,3],[29,5,29,7],[35,5,35,7],[36,5,36,7],[32,5,32,7],[34,6,34,7],[28,5,28,7],[39,2,39,4],[37,5,37,7],[35,2,35,3],[36,2,37,3],[62,7,62,9],[63,7,63,9],[63,5,63,6],[53,2,54,3],[51,6,51,7],[49,2,49,11],[50,5,50,7],[50,2,50,3],[57,6,57,14],[53,6,53,14],[61,14,61,16],[61,5,61,6],[60,16,60,17],[51,2,51,5],[52,2,52,11],[55,2,56,3],[58,6,58,14],[57,2,58,3],[53,15,58,18],[61,7,61,9],[48,2,48,3],[45,10,45,11],[21,6,21,7],[26,5,26,7],[17,5,17,7],[14,6,14,7],[23,6,23,7],[55,10,55,14],[30,5,30,7],[16,2,25,3],[16,5,16,7],[22,6,22,7],[18,5,18,7],[27,5,27,7],[20,5,20,7],[19,5,19,7],[24,6,24,7],[25,6,25,7],[47,10,47,11],[48,10,48,11],[46,10,46,11],[30,2,34,3],[33,5,33,7],[31,5,31,7],[27,2,27,3],[26,2,26,3],[6,5,6,8],[4,11,4,12],[4,14,4,18],[5,15,5,16],[4,2,4,3],[4,5,4,7],[10,2,10,3],[13,2,15,3],[8,5,8,10],[6,17,6,18],[6,12,6,14],[7,5,7,8],[12,13,12,18],[6,15,6,16],[6,2,6,3],[13,6,13,7],[39,10,39,11],[0,15,1,18],[8,15,10,18],[9,5,9,11],[10,5,10,11],[2,15,2,18],[2,7,2,14],[3,17,3,18],[3,15,3,16],[15,6,15,7],[2,2,2,5],[5,5,5,8],[5,2,5,3],[3,2,3,3],[3,5,3,11],[9,2,9,3],[7,2,7,3],[8,2,8,3],[7,11,7,18],[5,17,5,18],[3,13,3,14],[5,13,5,14],[38,2,38,7],[6,10,6,11]]}
[]
[" ",null,null,null,null,null,null,null,null,null,null,null,null,"\n\n"]
[null,null,null,null,null,null,null,"Travel Expense report",null,null,null,null,null,null,null,"Trip number"]
[null,null,"Surname & name",null,null,null,null,null,null,null,null,null,"Norwegian Social \nSecurity number",null,null,"Employee number"]
[null,null,"Document type",null,null,null,null,null,null,null,"Number",null,null,"Country"]
[null,null,"Personal address",null,null,null,null,null,null,null,"Zip code",null,"Region/City",null,null,"Client"]
[null,null,"Position/Job title",null,null,null,null,null,null,null,"Bank accout",null,null,null,null,"Company code"]
[null,null,"Employer",null,null,null,null,null,null,null,"Department"]
[null,null,"Regulative",null,null,null,null,null,null,null,null,"Country (city)",null,"Date","Time","Fields marked in light green with prefixes in italics, should only be filled in if you are not already registered in the payroll system."]
[null,null,"Destination",null,null,null,null,null,null,null,null,null,"Travel start"]
[null,null,"Reiseårsak",null,null,null,null,null,null,null,null,null,"Travel end"]
[null,null,"Travel expenses / allowance",null,null,null,null,null,null,null,"Quantity","Rate","Amount","Cost.Centre","K-elem.4","K-elem.5","K-elem.6","K-elem.7","(Account)"]
[null,null,null,null,null,null,null,"Transferred from page two",null,null," ---"," ---",{"$f":"IF(B!N38=0,0,B!N38)","v":0},"General cost allocation:"]
[null,null,"Meal allowance without accommodation, according to rate",null,null,"Day trip"]
[]
[]
[null,null,"Meal allowance for accommodation, according to rate\n\n",null,null,{"$f":"+F9","v":0}]
[null,null,null,null,null,"Hotel"]
[null,null,null,null,null,"Dorm w/o kitch,Board h./Barrac *"]
[null,null,null,null,null,"Dorm/Flat/Private w/kitchen *"]
[]
[null,null,null,null,null,{"$f":"+F9","v":0}]
[null,null,null,null,null,"Hotel"]
[null,null,null,null,null,"Dorm w/o kitch,\nBoard h./Barrac *\nsjonat/Brakke *"]
[null,null,null,null,null,"Dorm/Flat/Private\nw/kitchen *"]
[]
[null,null,null,null,null,"Is there an overnight stay in the additional day?"]
[]
[null,null,"Night \nsupplement",null,null,"Domestic",null,null,null,null,null,null,null,"Adapted cost allocation on individual items (if necessary):"]
[null,null,"Compensation \nsupplement",null,null,"Abroad *"]
[null,null,"Own transportation \n\nPlease specify your journey on page two.",null,null,"Car allowance. (El./Hybrid/Fossil) *",null,null,null,null,{"$f":"[1]B!J16+[1]B!J18","v":0}]
[null,null,null,null,null,"Home - work  (taxable) *",null,null,null,null,{"$f":"[1]B!J17","v":0}]
[null,null,null,null,null,"Passengers, see the note field"]
[null,null,null,null,null,"Passengers, see the note field",null,null,null,null,null,null,null,"   "]
[null,null,null,null,null,"Other vehicle"]
[null,null,"Other allowances*"]
[]
[]
[null,null,"Meal deductions: Tick for meals received",null,null,null,null,null,null,null,null,"Subtotal "]
[null,null,"Date/day:",null,null,"Breakfast","Lunch","Dinner",null,null,"  State county"]
[]
[]
[]
[]
[]
[]
[]
[]
[]
[null,null,"Total travel settlement   ."]
[null,null,"Other deductions"]
[null,null,"Travel advance"]
[null,null," Total (Benefits subject to withholding tax are marked with *) ."]
[null,null,"Employee signature",null,"Dato","Date","I herby confirm that possible amount owed can be deducted from wages",null,null,null,null,null,null,null,null,"Rates are not calculated.\n It is the rates and calculations that\n lies in the salary system that will be used at\n the payment of the travel expense report.\n Expected payout amount may be less\n because of withholding tax."]
[null,null,null,null,null,null,"Sign."]
[null,null,"Attestant",null,"Dato","Date","Sign."]
[]
[null,null,"Budget authority",null,"Dato","Date","Sign."]
[]
[null,null,null,null,null,null,null,null,null,null,null,null,null,null,null,null,null,"2023-02-01"]
[]
[null,null,null,"COUNTRY",null,"ULEGITIMERT ",null,null,null,null,null,null,null,null,"Other means of transport",null,null,null,"REGULATIVE"]
[null,null,null,null,null,"KOSTGODTGJØRELSE"]
[null,null,null,"Norway",null,"MED OVERNATTING",null,null,null,null,null,null,null,null,"Motorcycle (MC)>125 ccm, Moped car",null,null,null,"Day trip"]
[null,null,null,"Afghanistan",null,null,null,null,null,null,null,null,null,null,"Snowscooter / ATV",null,null,null,"Hotel"]
[null,null,null,"Africa (other ctry)",null,"5-9 timer",null,"8 - 12 timer",null,null,null,"SAP","xx",null,"Boat with motor",null,null,null,"Dorm w/o kitch,Board h./Barrac"]
[null,null,null,"Albania",null,"9-12 timer",null,"over 12 timer",null,null,null,null,null,null,"Moped, MC =<125 ccm and other motorized means of transportation",null,null,null,"Dorm/Flat/Private w/kitchen"]
[null,null,null,"Algeria",null,"over 12 timer",null,null,null,null,null,null,null,null,null,null,null,null,">28d Hotel"]
[null,null,null,"America (other ctry)",null,null,null,null,null,null,null,null,null,null,"Forest and construction roads",null,null,null,">28d Dorm w/o ktich, Barracks"]
[null,null,null,"Angola",null,null,null,null,null,null,null,null,null,null,"Trailer etc.",null,null,null,">28d Dorm /Flat/Priv w/kitchen"]
[null,null,null,"Argentina",null,null,null,null,null,null,null,null,null,null,null,null,null,null,"NoTax Dorm w/o kitch,Barracks"]
[null,null,null,"Armenia",null,null,null,null,null,null,null,null,null,null,null,null,null,null,"NoTax Dorm/Flat/Priv w/kitch"]
[null,null,null,"Asia (other ctry)",null,null,null,null,null,null,null,null,null,null,null,null,null,null,"Field agreement"]
[null,null,null,"Australia"]
[null,null,null,"Austria"]
[null,null,null,"Austria,Wien"]
[null,null,null,"Azerbaijan"]
[null,null,null,"Bahamas"]
[null,null,null,"Bahrain"]
[null,null,null,"Bangladesh"]
[null,null,null,"Barbados"]
[null,null,null,"Belarus"]
[null,null,null,"Belgium"]
[null,null,null,"Benin"]
[null,null,null,"Bolivia"]
[null,null,null,"Bosnia-Herz."]
[null,null,null,"Botswana"]
[null,null,null,"Brazil"]
[null,null,null,"Brazil,Rio"]
[null,null,null,"BruneiDarussalam"]
[null,null,null,"Bulgaria"]
[null,null,null,"Burundi"]
[null,null,null,"Cambodia"]
[null,null,null,"Cameroon"]
[null,null,null,"Canada"]
[null,null,null,"Chile"]
[null,null,null,"China"]
[null,null,null,"China,HongKong"]
[null,null,null,"China,Shanghai"]
[null,null,null,"Colombia"]
[null,null,null,"Congo, Democratic.Rep."]
[null,null,null,"Congo, Rep."]
[null,null,null,"CostaRica"]
[null,null,null,"Croatia"]
[null,null,null,"Cuba"]
[null,null,null,"Cyprus"]
[null,null,null,"CzechRepublic"]
[null,null,null,"Denmark"]
[null,null,null,"EastTimor"]
[null,null,null,"Egypt"]
[null,null,null,"ElSalvador"]
[null,null,null,"Eritrea"]
[null,null,null,"Estonia"]
[null,null,null,"Eswatini"]
[null,null,null,"Ethiopia"]
[null,null,null,"Finland"]
[null,null,null,"France"]
[null,null,null,"France,Paris"]
[null,null,null,"Gabon"]
[null,null,null,"Georgia"]
[null,null,null,"Germany"]
[null,null,null,"Germany,Berlin"]
[null,null,null,"Ghana"]
[null,null,null,"Greece"]
[null,null,null,"Guatemala"]
[null,null,null,"Guyana"]
[null,null,null,"Honduras"]
[null,null,null,"Hungary"]
[null,null,null,"Iceland"]
[null,null,null,"India"]
[null,null,null,"Indonesia"]
[null,null,null,"Iran"]
[null,null,null,"Ireland"]
[null,null,null,"Israel"]
[null,null,null,"Italy"]
[null,null,null,"IvoryCoast"]
[null,null,null,"Jamaica"]
[null,null,null,"Japan"]
[null,null,null,"Jordan"]
[null,null,null,"Kazakhstan"]
[null,null,null,"Kenya"]
[null,null,null,"Kosovo"]
[null,null,null,"Kuwait"]
[null,null,null,"Laos"]
[null,null,null,"Latvia"]
[null,null,null,"Lebanon"]
[null,null,null,"Lesotho"]
[null,null,null,"Liechtenstein"]
[null,null,null,"Lithuania"]
[null,null,null,"Luxembourg"]
[null,null,null,"Madagascar"]
[null,null,null,"Malawi"]
[null,null,null,"Malaysia"]
[null,null,null,"Maldives"]
[null,null,null,"Malta"]
[null,null,null,"Mauritius"]
[null,null,null,"Mexico"]
[null,null,null,"Moldavia"]
[null,null,null,"Monaco"]
[null,null,null,"Montenegro"]
[null,null,null,"Morocco"]
[null,null,null,"Mozambique"]
[null,null,null,"Myanmar"]
[null,null,null,"Namibia"]
[null,null,null,"Netherlands"]
[null,null,null,"NewZealand"]
[null,null,null,"Nicaragua"]
[null,null,null,"Nigeria"]
[null,null,null,"NorthKorea"]
[null,null,null,"NorthMacedonia"]
[null,null,null,"Oceania (other ctry)"]
[null,null,null,"Oman"]
[null,null,null,"Pakistan"]
[null,null,null,"PalestinianTerritory"]
[null,null,null,"Panama"]
[null,null,null,"PapuaNewGuinea"]
[null,null,null,"Paraguay"]
[null,null,null,"Peru"]
[null,null,null,"Philippines"]
[null,null,null,"Poland"]
[null,null,null,"Portugal"]
[null,null,null,"PuertoRico"]
[null,null,null,"Qatar"]
[null,null,null,"Romania"]
[null,null,null,"Russia"]
[null,null,null,"Russia,Moscow"]
[null,null,null,"Russia,St.Petersburg"]
[null,null,null,"SaudiArabia"]
[null,null,null,"Serbia"]
[null,null,null,"Seychelles"]
[null,null,null,"Singapore"]
[null,null,null,"Slovakia"]
[null,null,null,"Slovenia"]
[null,null,null,"SouthAfrica"]
[null,null,null,"SouthKorea"]
[null,null,null,"SouthSudan"]
[null,null,null,"Spain"]
[null,null,null,"SriLanka"]
[null,null,null,"Sudan"]
[null,null,null,"Suriname"]
[null,null,null,"Sweden"]
[null,null,null,"Switzerland"]
[null,null,null,"Switzerland,Geneva"]
[null,null,null,"Switzerland,Zurich"]
[null,null,null,"Taiwan"]
[null,null,null,"Tanzania"]
[null,null,null,"Thailand"]
[null,null,null,"Togo"]
[null,null,null,"Turkey"]
[null,null,null,"Turkey,Istanbul"]
[null,null,null,"Ukraine"]
[null,null,null,"UnitedKingdom"]
[null,null,null,"UnitedKingdom,London"]
[null,null,null,"Uruguay"]
[null,null,null,"USA"]
[null,null,null,"USA,NewYork"]
[null,null,null,"USA,SanFrancisco"]
[null,null,null,"USA,WashingtonD.C."]
[null,null,null,"Utd.ArabEmir."]
[null,null,null,"Uzbekistan"]
[null,null,null,"Venezuela"]
[null,null,null,"Vietnam"]
[null,null,null,"Yemen"]
[null,null,null,"Zambia"]
[null,null,null,"Zimbabwe"]

{"sheet":"B","index":1,"n_rows":65,"n_cols":14,"rows_kept":65,"cut":false,"hidden":false,"merged":[[4,3,4,4],[48,1,48,10],[39,10,39,12],[1,10,1,13],[2,10,2,12],[17,6,17,8],[16,3,16,5],[7,3,7,4],[8,3,8,4],[10,3,10,4],[16,6,16,8],[18,10,18,12],[15,1,16,1],[9,3,9,4],[11,3,11,4],[12,3,12,4],[51,1,58,13],[50,1,50,13],[45,1,45,10],[47,1,47,10],[39,1,39,9],[46,1,46,10],[5,3,5,4],[6,3,6,4],[13,3,13,4],[14,3,14,4],[18,1,18,9],[15,6,15,8],[15,3,15,4]]}
[]
[null,"  Travel specification (when, where and how)",null,null,null,null,null,null,null,null,"Travel expenses"]
[null,null,"From",null,null,"To",null,null,"Means of transport",null,"Foreign currency"]
[null,"Date","Time","                 Place / address",null,"Place / address","Time","Vehicle \ntype","Driving code","Mileage\n(km)","Currency","Amount in currency","Exch. rate","Amount"]
[null,null,null,null,null,null,null,null,null,null,null,null,null,{"$f":"IF(AND(L5<>0,M5<>0),L5*M5,L5)","v":0}]
[null,null,null,null,null,null,null,null,null,null,null,null,null,{"$f":"IF(AND(L6<>0,M6<>0),L6*M6,L6)","v":0}]
[null,null,null,null,null,null,null,null,null,null,null,null,null,0]
[null,null,null,null,null,null,null,null,null,null,null,null,null,0]
[null,null,null,null,null,null,null,null,null,null,null,null,null,0]
[null,null,null,null,null,null,null,null,null,null,null,null,null,0]
[null,null,null,null,null,null,null,null,null,null,null,null,null,0]
[null,null,null,null,null,null,null,null,null,null,null,null,null,0]
[null,null,null,null,null,null,null,null,null,null,null,null,null,0]
[null,null,null,null,null,null,null,null,null,null,null,null,null,0]
[null,null,null,null,null,null,null,null,null,null,null,null,null,0]
[null,"Autorization for car use"," Date",null,null,null,"Total mileage",null,null,{"$f":"I62+I65","v":0},null,null,"Subtotal",{"$f":"IF(SUM(N5:N15)<>0,SUM(N5:N15),0)","v":0}]
[null,null,"Approved by:",null,null,null,"Total mileage home - work",null,null,{"$f":"I64","v":0}]
[null,null,"   "]
[null,"Expenses for accommodation, tickets, tolls, etc.",null,null,null,null,null,null,null,null,"Foreign currency"]
[null,"Date","  Spesification",null,null,null,null,null,null,"Receipt","Currency","Amount in currency","Exch. rate","Amount"]
[null,null,null,null,null,null,null,null,null,null,null,null,null,{"$f":"IF(AND(L21<>0,M21<>0),L21*M21,L21)","v":0}]
[]
[null,null,null,null,null,null,null,null,null,null,null,null,null,{"$f":"IF(AND(L23<>0,M23<>0),L23*M23,L23)","v":0}]
[null,null,null,null,null,null,null,null,null,null,null,null,null,0]
[null,null,null,null,null,null,null,null,null,null,null,null,null,0]
[null,null,null,null,null,null,null,null,null,null,null,null,null,0]
[null,null,null,null,null,null,null,null,null,null,null,null,null,0]
[null,null,null,null,null,null,null,null,null,null,null,null,null,0]
[null,null,null,null,null,null,null,null,null,null,null,null,null,0]
[]
[]
[]
[null,null,null,null,null,null,null,null,null,null,null,null,null,0]
[null,null,null,null,null,null,null,null,null,null,null,null,null,0]
[null,null,null,null,null,null,null,null,null,null,null,null,null,0]
[null,"   ","   ",null,null,null,null,null,null,null,null,null,"Subtotal",{"$f":"IF(SUM(N21:N35)<>0,SUM(N21:N35),0)","v":0}]
[]
[null,null,null,null,"  Travel expenses - automatically transferred to the front page",null,null,null,null,null,null,null,"Amount",{"$f":"IF(OR(N16<>0,N36<>0),N16+N36,0)","v":0}]
[]
[null,"  Expenses paid by the employer",null,null,null,null,null,null,null,null,"Foreign currency"]
[null,"  Date","  Spesification",null,null,null,null,null,null,null,"Currency","Amount in currency","Exch. rate","Amount"]
[null,null,null,null,null,null,null,null,null,null,null,null,null,{"$f":"IF(AND(L42<>0,M42<>0),L42*M42,L42)","v":0}]
[null,null,null,null,null,null,null,null,null,null,null,null,null,{"$f":"IF(AND(L43<>0,M43<>0),L43*M43,L43)","v":0}]
[null,null,null,null,null,null,null,null,null,null,null,null,null,{"$f":"IF(AND(L44<>0,M44<>0),L44*M44,L44)","v":0}]
[]
[null," Accommodation (State the name and location of hotel, boarding house or other. (Not private stay))"]
[null," Otherwise, the amount that exceed the Tax Agency's advance rates for accommodation with cooking facilities, will be taxable."]
[]
[]
[]
[null,"Notes (Enter name of passengers here.) "]
[]
[]
[]
[]
[]
[]
[]
[]
[null,null,null,null,null,null,null,null,null,null,null,null,null,{"$f":"A!R60","v":"2023-02-01"}]
[null,"Tidsintervall",null,"JA/NEI",null,null,null,"Summering av kjøretype"]
[null,null,null,null,null,null,null,null,{"$f":"SUMIF($I$5:$I$15,\"\",$J$5:$J$15)","v":0}]
[null,"5-9 timer",null,"Yes",null,null,null,null,{"$f":"SUMIF($I$5:$I$15,H63,$J$5:$J$15)","v":0}]
[null,"9-12 timer",null,"No",null,null,null,"X",{"$f":"SUMIF($I$5:$I$15,H64,$J$5:$J$15)","v":0}]
[null,"over 12 timer",null,null,null,null,null,"U",{"$f":"SUMIF($I$5:$I$15,H65,$J$5:$J$15)","v":0}]

{"sheet":"C","index":2,"n_rows":0,"n_cols":0,"rows_kept":0,"cut":false,"hidden":false,"merged":[]}

{"sheet":"E","index":3,"n_rows":28,"n_cols":11,"rows_kept":28,"cut":false,"hidden":true,"merged":[[7,0,7,2],[8,0,8,2],[9,0,9,2],[10,0,10,2],[0,0,0,2],[1,0,1,2],[3,0,3,2],[6,0,6,2],[4,0,4,2],[2,0,2,2],[5,0,5,2],[18,0,18,2],[12,0,12,2],[16,0,16,2],[11,0,11,2],[13,0,13,2],[15,0,15,2],[17,0,17,2],[14,0,14,2]]}
["Trekk for kost",null,null,"Frokost","Lunsj","Middag","Sum",null,"Sats",null,"Veiledning"]
["Uten overnatting 6-12",null,null,{"$f":"IF(A!F41<>0,#REF!*A!F41,\"\")","v":""},{"$f":"IF(A!G41<>0,#REF!*A!G41,\"\")","v":""},{"$f":"IF(A!H41<>0,#REF!*A!H41,\"\")","v":""},{"$f":"SUM(D2:F2)","v":0},{"$f":"IF(B!J5=\"\",\"\",+B!J5)","v":""},null,null,"fyll ut hvite felt. "]
["Uten overnatting over 12 t",null,null,{"$f":"IF(A!F42<>0,#REF!*A!F42,\"\")","v":""},{"$f":"IF(A!G42<>0,#REF!*A!G42,\"\")","v":""},{"$f":"IF(A!H42<>0,#REF!*A!H42,\"\")","v":""},{"$f":"SUM(D3:F3)","v":0},{"$f":"IF(B!J6=\"\",\"\",+B!J6)","v":""},null,null,"fyll ut hvite felt. "]
["Hotell innland",null,null,{"$f":"IF(A!F43<>0,#REF!*#REF!*A!F43,\"\")","v":""},{"$f":"IF(A!G43<>0,#REF!*#REF!*A!G43,\"\")","v":""},{"$f":"IF(A!H43<>0,#REF!*#REF!*A!H43,\"\")","v":""},0,{"$f":"IF(B!J6=\"\",\"\",+B!J6)","v":""},null,null,"lagre lokalt"]
["Pensjonat",null,null,{"$f":"IF(A!F44<>0,#REF!*#REF!*A!F44,\"\")","v":""},{"$f":"IF(A!G44<>0,#REF!*#REF!*A!G44,\"\")","v":""},{"$f":"IF(A!H44<>0,#REF!*#REF!*A!H44,\"\")","v":""},{"$f":"SUM(D5:F5)","v":0},{"$f":"IF(B!J5=\"\",\"\",+B!J5)","v":""}]
["Hybel/brakke/privat",null,null,{"$f":"IF(A!F45<>0,#REF!*#REF!*A!F45,\"\")","v":""},{"$f":"IF(A!G45<>0,#REF!*#REF!*A!G45,\"\")","v":""},{"$f":"IF(A!H45<>0,#REF!*#REF!*A!H45,\"\")","v":""},{"$f":"SUM(D6:F6)","v":0},{"$f":"IF(B!J6=\"\",\"\",+B!J6)","v":""}]
["Hotell utland",null,null,{"$f":"IF(A!F46<>0,A!F46*E!I7*#REF!,\"\")","v":""},{"$f":"IF(A!G46<>0,A!G46*I7*#REF!,\"\")","v":""},{"$f":"IF(A!H46<>0,I7*A!H46*#REF!,\"\")","v":""},0,{"$f":"IF(B!J7=\"\",\"\",+B!J7)","v":""},{"$f":"VLOOKUP(A!K46,#REF!,3,FALSE)","v":{"$error":"#REF!"}},null,"hvordan håndtere årsskifte - nullstille akkumulator"]
["Hotell utland",null,null,{"$f":"IF(A!F47<>0,A!F47*E!I8*#REF!,\"\")","v":""},{"$f":"IF(A!G47<>0,A!G47*I8*#REF!,\"\")","v":""},{"$f":"IF(A!H47<>0,I8*A!H47*#REF!,\"\")","v":""},0,{"$f":"IF(B!J8=\"\",\"\",+B!J8)","v":""},{"$f":"VLOOKUP(A!K47,#REF!,3,FALSE)","v":{"$error":"#REF!"}}]
["Pensjonat",null,null,{"$f":"IF(A!F48<>0,A!F48*E!I9*#REF!,\"\")","v":""},{"$f":"IF(A!G48<>0,A!G48*I9*#REF!,\"\")","v":""},{"$f":"IF(A!H48<>0,I9*A!H48*#REF!,\"\")","v":""},0,{"$f":"IF(B!J9=\"\",\"\",+B!J9)","v":""},{"$f":"VLOOKUP(A!K48,#REF!,3,FALSE)","v":{"$error":"#REF!"}}]
["Hybel/brakke/privat",null,null,{"$f":"IF(A!F49<>0,A!F49*E!I10*#REF!,\"\")","v":""},{"$f":"IF(A!G49<>0,A!G49*I10*#REF!,\"\")","v":""},{"$f":"IF(A!H49<>0,I10*A!H49*#REF!,\"\")","v":""},0,{"$f":"IF(B!J10=\"\",\"\",+B!J10)","v":""},{"$f":"VLOOKUP(A!K49,#REF!,3,FALSE)","v":{"$error":"#REF!"}}]
["Nattillegg",null,null,{"$f":"IF(A!#REF!<>0,A!#REF!*E!I11*#REF!,\"\")","v":{"$error":"#REF!"}},null,null,{"$error":"#REF!"},null,{"$f":"VLOOKUP(A!#REF!,#REF!,3,FALSE)","v":{"$error":"#REF!"}}]
["Kostgodtgjøring uten overnatting, 6-12 t.",null,null,1,null,"Her summeres kilometer hjem / arbeid."]
["Kostgodtgjøring uten overnatting, > 12 t.",null,null,1,null,{"$f":"SUMIF(B!I5:J15,\"X\",B!J5:J15)","v":0},null,null,null,"Satser for trekk av kost ved opphold på pensjonat"]
["Kostgodtgjøring med overnatting,  1",null,null,8,null,null,null,null,null,"Frokost",29]
["Kostgodtgjørimg med overnatting, 2",null,null,1,null,"Tromsø",null,null,null,"Lunsj",117]
["Nattillegg, 1",null,null,1,null,"høyere km.sats",null,null,null,"Middag",147]
["Nattillegg, 2",null,null,1,null,{"$f":"IF(A!M9=\"Tromsø\",1,\"\")","v":""},null,null,null,"Satser for trekk av kost ved opphold på hybel/brakke/privat"]
["Trekk for kost utland, 1",null,null,1,null,null,null,null,null,"Frokost",19]
["Trekk for kost utland, 1",null,null,1,null,null,null,null,null,"Lunsj",76]
[null,null,null,null,null,null,null,null,null,"Middag",95]
[]
["Passnummer"]
["Social security number"]
["Tax identification number",null,null,null,null,null,{"$f":"ROUNDDOWN(G9,0)","v":0}]
["VAT identification number"]
[]
["ja"]
["nei"]